fUST/lending_fUST_20240705
["ID","MTS","AMOUNT","RATE_DAILY","PERIOD"]
[331213760,1720135854635,-500.0,0.00018904,2]
[331213761,1720135854645,-500.0,0.00018904,2]
[331213762,1720135854655,-751.77,0.00018904,2]
[331213763,1720135854665,-726.17,0.00018904,2]
[331213764,1720135854674,-154.64,0.00018904,2]
[331213765,1720135854684,-2140.17,0.00018904,2]
[331213766,1720135854694,-1431.01,0.00018904,2]
[331213767,1720135854704,-500.0,0.00018904,2]
[331213768,1720135854713,-500.0,0.00018904,2]
[331213769,1720135854723,-1019.4,0.00018904,2]
[331213770,1720135854733,-4364.82,0.00018904,2]
[331213771,1720135854743,-5426.46,0.00018904,2]
[331213772,1720135854753,-2322.23,0.00018904,2]
[331213773,1720135854763,-591.25,0.00018904,2]
[331213774,1720135854772,-250.0,0.00019041,2]
[331213775,1720135854782,-1026.04,0.00019177,2]
[331213776,1720135854792,-321.06,0.00019178,2]
[331213777,1720135854801,-321.06,0.00019178,2]
[331213778,1720135854811,-321.06,0.00019178,2]
[331213779,1720135854820,-321.06,0.00019178,2]
[331213780,1720135854831,-321.06,0.00019178,2]
[331213781,1720135854840,-321.06,0.00019178,2]
[331213782,1720135854850,-321.06,0.00019178,2]
[331213783,1720135854861,-321.06,0.00019178,2]
[331213784,1720135854872,-321.06,0.00019178,2]
[331213785,1720135854883,-321.06,0.00019178,2]
[331213786,1720135854894,-321.06,0.00019178,2]
[331213787,1720135854903,-321.06,0.00019178,2]
[331213788,1720135854912,-321.06,0.00019178,2]
[331213789,1720135854922,-321.06,0.00019178,2]
[331213790,1720135854932,-321.06,0.00019178,2]
[331213791,1720135854942,-321.06,0.00019178,2]
[331213792,1720135854951,-321.06,0.00019178,2]
[331213793,1720135854961,-321.06,0.00019178,2]
[331213794,1720135854972,-321.06,0.00019178,2]
[331213795,1720135854986,-321.06,0.00019178,2]
[331213796,1720135854997,-321.06,0.00019178,2]
[331213797,1720135855007,-500.0,0.00019178,2]
[331213798,1720135855018,-2411.42,0.00019178,2]
[331213799,1720135855027,-584.16,0.00019178,2]
[331213800,1720135855037,-268.44,0.00019178,2]
[331213801,1720135855047,-500.0,0.00019178,2]
[331213802,1720135855059,-751.77,0.00019178,2]
[331213803,1720135855069,-726.17,0.00019178,2]
[331213804,1720135855080,-2140.17,0.00019178,2]
[331213805,1720135855089,-1431.01,0.00019178,2]
[331213806,1720135855099,-500.0,0.00019178,2]
[331213807,1720135855114,-500.0,0.00019178,2]
[331213808,1720135855124,-1019.4,0.00019178,2]
[331213809,1720135855134,-4364.82,0.00019178,2]
[331213810,1720135855144,-5426.46,0.00019178,2]
[331213811,1720135855154,-2322.23,0.00019178,2]
[331213812,1720135855164,-591.25,0.00019178,2]
[331213813,1720135855174,-192.23369,0.00019178,2]
[331213814,1720135855184,-440.5831188,0.00019178,4]
[331213815,1720135855194,-1026.04,0.00019451,2]
[331213816,1720135855204,-321.06,0.00019452,2]
[331213817,1720135855213,-500.0,0.00019452,2]
[331213818,1720135855223,-2411.42,0.00019452,2]
[331213819,1720135855233,-584.16,0.00019452,2]
[331213820,1720135855242,-500.0,0.00019452,2]
[331213821,1720135855251,-751.77,0.00019452,2]
[331213822,1720135855261,-726.17,0.00019452,2]
[331213823,1720135855271,-2140.17,0.00019452,2]
[331213824,1720135855281,-1431.01,0.00019452,2]
[331213825,1720135855291,-500.0,0.00019452,2]
[331213826,1720135855300,-500.0,0.00019452,2]
[331213827,1720135855310,-1019.4,0.00019452,2]
[331213828,1720135855320,-4364.82,0.00019452,2]
[331213829,1720135855330,-5426.46,0.00019452,2]
[331213830,1720135855339,-2322.23,0.00019452,2]
[331213831,1720135855350,-591.25,0.00019452,2]
[331213832,1720135855362,-1026.04,0.00019725,2]
[331213833,1720135855374,-321.06,0.00019726,2]
[331213834,1720135855384,-645.26,0.00019726,2]
[331213835,1720135855393,-2411.42,0.00019726,2]
[331213836,1720135855404,-584.16,0.00019726,2]
[331213837,1720135855413,-503.07,0.00019726,2]
[331213838,1720135855423,-751.77,0.00019726,2]
[331213839,1720135855433,-726.17,0.00019726,2]
[331213840,1720135855443,-2140.17,0.00019726,2]
[331213841,1720135855453,-1431.01,0.00019726,2]
[331213842,1720135855463,-320.17,0.00019726,2]
[331213843,1720135855472,-500.0,0.00019726,2]
[331213844,1720135855483,-1019.4,0.00019726,2]
[331213845,1720135855493,-4364.82,0.00019726,2]
[331213846,1720135855503,-5426.46,0.00019726,2]
[331213847,1720135855513,-2322.23,0.00019726,2]
[331213848,1720135855522,-1026.04,0.00019999,2]
[331213849,1720135855532,-1724.33992722,0.0002,2]
[331213850,1720135855542,-3967.17519888,0.0002,2]
[331213851,1720135855552,-435.0,0.0002,2]
[331213852,1720135855562,-562.70017201,0.0002,2]
[331213853,1720135855571,-321.19209543,0.0002,2]
[331213854,1720135855581,-2411.63,0.0002,2]
[331213855,1720135855591,-584.32,0.0002,2]
[331213856,1720135855600,-751.97,0.0002,2]
[331213857,1720135855613,-726.35,0.0002,2]
[331213858,1720135855622,-2140.32,0.0002,2]
[331213859,1720135855632,-1431.23,0.0002,2]
[331213860,1720135855641,-358.01711169,0.0002,2]
[331213861,1720135855651,-1019.59,0.0002,2]
[331213862,1720135855661,-4365.0264303,0.0002,2]
[331213863,1720135855670,-5426.52551898,0.0002,2]
[331213864,1720135855680,-2322.31,0.0002,2]
[331213865,1720135855689,-1026.18,0.00020273,2]
[331213866,1720135855700,-676.35627,0.00020548,2]
[331213867,1720135855710,-222.222391,0.00021096,2]
[331213868,1720135855720,-527.777609,0.00021096,2]
[331213869,1720135855730,-3000.0,0.000215,2]
[331213870,1720135855740,-3000.0,0.0002151,2]
[331213871,1720135855750,-3000.0,0.0002152,2]
[331213872,1720135855760,-3000.0,0.0002153,2]
[331213873,1720135855770,-3000.0,0.0002154,2]
[331213874,1720135855780,-3000.0,0.0002155,2]
[331213875,1720135855790,-3000.0,0.0002156,2]
[331213876,1720135855800,-3000.0,0.0002157,2]
[331213877,1720135855810,-3000.0,0.0002158,2]
[331213878,1720135855820,-3000.0,0.0002159,2]
[331213879,1720135855830,-3000.0,0.000216,2]
[331213880,1720135855839,-3000.0,0.0002161,2]
[331213881,1720135855850,-3000.0,0.0002162,2]
[331213882,1720135855862,-3000.0,0.0002163,2]
[331213883,1720135855872,-3000.0,0.0002164,2]
[331213884,1720135855882,-3000.0,0.0002165,2]
[331213885,1720135855892,-3000.0,0.0002166,2]
[331213886,1720135855902,-3000.0,0.0002167,2]
[331213887,1720135855912,-3000.0,0.0002168,2]
[331213888,1720135855921,-3000.0,0.0002169,2]
[331213889,1720135855931,-3000.0,0.000217,2]
[331213890,1720135855941,-3000.0,0.0002171,2]
[331213891,1720135856061,-3000.0,0.0002172,2]
[331213892,1720135856074,-3000.0,0.0002173,2]
[331213893,1720135856083,-3000.0,0.0002174,2]
[331213894,1720135856092,-3000.0,0.0002175,2]
[331213895,1720135856102,-3000.0,0.0002176,2]
[331213896,1720135856113,-3000.0,0.0002177,2]
[331213897,1720135856122,-3000.0,0.0002178,2]
[331213898,1720135856131,-3000.0,0.0002179,2]
[331213899,1720135856140,-3000.0,0.000218,2]
[331213900,1720135856150,-3000.0,0.0002181,2]
[331213901,1720135856160,-3000.0,0.0002182,2]
[331213902,1720135856169,-3000.0,0.0002183,2]
[331213903,1720135856178,-3000.0,0.0002184,2]
[331213904,1720135856188,-3000.0,0.0002185,2]
[331213905,1720135856197,-3000.0,0.0002186,2]
[331213906,1720135856207,-3000.0,0.0002187,2]
[331213907,1720135856217,-3000.0,0.0002188,2]
[331213908,1720135856226,-3000.0,0.0002189,2]
[331213909,1720135856236,-3000.0,0.000219,2]
[331213910,1720135856247,-3000.0,0.0002191,2]
[331213911,1720135856258,-500.0,0.00021917,2]
[331213912,1720135856267,-500.0,0.00021917,2]
[331213913,1720135856276,-500.0,0.00021917,2]
[331213914,1720135856285,-500.0,0.00021917,2]
[331213915,1720135856294,-500.0,0.00021917,2]
[331213916,1720135856303,-500.0,0.00021917,2]
[331213917,1720135856313,-500.0,0.00021917,2]
[331213918,1720135856323,-500.0,0.00021917,2]
[331213919,1720135856332,-500.0,0.00021917,2]
[331213920,1720135856343,-3000.0,0.0002192,2]
[331213921,1720135856352,-3000.0,0.0002193,2]
[331213922,1720135856363,-3000.0,0.0002194,2]
[331213923,1720135856372,-3000.0,0.0002195,2]
[331213924,1720135856381,-3000.0,0.0002196,2]
[331213925,1720135856390,-3000.0,0.0002197,2]
[331213926,1720135856400,-3000.0,0.0002198,2]
[331213927,1720135856409,-3000.0,0.0002199,2]
[331213928,1720135856418,-3000.0,0.00022,2]
[331213929,1720135856428,-3000.0,0.0002201,2]
[331213930,1720135856438,-3000.0,0.0002202,2]
[331213931,1720135856447,-3000.0,0.0002203,2]
[331213932,1720135856456,-3000.0,0.0002204,2]
[331213933,1720135856465,-3000.0,0.0002205,2]
[331213934,1720135856475,-3000.0,0.0002206,2]
[331213935,1720135856484,-3000.0,0.0002207,2]
[331213936,1720135856493,-3000.0,0.0002208,2]
[331213937,1720135856503,-3000.0,0.0002209,2]
[331213938,1720135856513,-3000.0,0.000221,2]
[331213939,1720135856523,-3000.0,0.0002211,2]
[331213940,1720135856534,-3000.0,0.0002212,2]
[331213941,1720135856544,-3315.03251,0.0002213,2]
[331213942,1720135856554,-200.0,0.00023,2]
[331213943,1720135856563,-150.90270468,0.00023015,2]
[331213944,1720135856572,-166.76986611,0.00023066,2]
[331213945,1720135856581,-152.47480697,0.00023097,2]
[331213946,1720135856591,-156.27759996,0.00023282,2]
[331213947,1720135856600,-150.90270468,0.00023411,2]
[331213948,1720135856610,-2420.55776569,0.00023453,2]
[331213949,1720135856620,-166.76986611,0.00023457,2]
[331213950,1720135856628,-150.90270468,0.00023485,2]
[331213951,1720135856638,-150.90270468,0.0002372,2]
[331213952,1720135856647,-150.0,0.00023763,2]
[331213953,1720135856657,-877.0,0.00023763,2]
[331213954,1720135856666,-156.27759996,0.00023768,2]
[331213955,1720135856675,-150.90270468,0.00023786,2]
[331213956,1720135856684,-166.76986611,0.00023914,2]
[331213957,1720135856693,-166.76986611,0.00023938,2]
[331213958,1720135856702,-150.90270468,0.00023967,2]
[331213959,1720135856711,-150.90270468,0.00024222,2]
[331213960,1720135856721,-150.90270468,0.00024256,2]
[331213961,1720135856730,-166.76986611,0.00024263,2]
[331213962,1720135856740,-150.90270468,0.00024318,2]
[331213963,1720135856750,-166.76986614,0.00024388,2]
[331213964,1720135856760,-150.90270468,0.0002451,2]
[331213965,1720135856771,-150.90270468,0.00024521,2]
[331213966,1720135856781,-200.0,0.00024657,7]
[331213967,1720135856792,-200.0,0.00024658,15]
[331213968,1720135856802,-380.0,0.00024658,2]
[331213969,1720135856811,-152.47480697,0.00024703,2]
[331213970,1720135856820,-150.90270468,0.00024707,2]
[331213971,1720135856829,-150.90270468,0.00024846,2]
[331213972,1720135856839,-150.90270468,0.00024875,2]
[331213973,1720135856848,-150.90270468,0.00024951,2]
[331213974,1720135856859,-150.90270483,0.00024968,2]
[331213975,1720135856868,-10869.75280591,0.00025501,2]
[331213976,1720135856881,-1116.93849339,0.00025501,2]
[331213977,1720135856891,-3137.77932824,0.00025501,2]
[331213978,1720135856901,-219.917885,0.00026388,2]
[331213979,1720135856911,-3000.0,0.000265,2]
[331213980,1720135856920,-3000.0,0.0002651,2]
[331213981,1720135856930,-3000.0,0.0002652,2]
[331213982,1720135856939,-3000.0,0.0002653,2]
[331213983,1720135856948,-3000.0,0.0002654,2]
[331213984,1720135856957,-3000.0,0.0002655,2]
[331213985,1720135856967,-3000.0,0.0002656,2]
[331213986,1720135856977,-3000.0,0.0002657,2]
[331213987,1720135856990,-454.04632969,0.00026574,2]
[331213988,1720135857000,-3000.0,0.0002658,2]
[331213989,1720135857009,-3000.0,0.0002659,2]
[331213990,1720135857019,-3000.0,0.000266,2]
[331213991,1720135857028,-3000.0,0.0002661,2]
[331213992,1720135857039,-3000.0,0.0002662,2]
[331213993,1720135857048,-3000.0,0.0002663,2]
[331213994,1720135857058,-3000.0,0.0002664,2]
[331213995,1720135857069,-3000.0,0.0002665,2]
[331213996,1720135857078,-3000.0,0.0002666,2]
[331213997,1720135857088,-3000.0,0.0002667,2]
[331213998,1720135857098,-3000.0,0.0002668,2]
[331213999,1720135857111,-3000.0,0.0002669,2]
[331214000,1720135857120,-3000.0,0.000267,2]
[331214001,1720135857130,-3000.0,0.0002671,2]
[331214002,1720135857139,-3000.0,0.0002672,2]
[331214003,1720135857149,-3000.0,0.0002673,2]
[331214004,1720135857158,-3000.0,0.0002674,2]
[331214005,1720135857168,-3000.0,0.0002675,2]
[331214006,1720135857177,-3000.0,0.0002676,2]
[331214007,1720135857186,-150.0,0.00026763,2]
[331214008,1720135857195,-3000.0,0.0002677,2]
[331214009,1720135857205,-3000.0,0.0002678,2]
[331214010,1720135857214,-3000.0,0.0002679,2]
[331214011,1720135857225,-3000.0,0.000268,2]
[331214012,1720135857234,-3000.0,0.0002681,2]
[331214013,1720135857244,-3000.0,0.0002682,2]
[331214014,1720135857253,-3000.0,0.0002683,2]
[331214015,1720135857263,-3000.0,0.0002684,2]
[331214016,1720135857272,-3000.0,0.0002685,2]
[331214017,1720135857283,-661.8635366,0.00027072,2]
[331214018,1720135857294,-2132.45671248,0.00027184,2]
[331214019,1720135857304,-222.222391,0.00027195,2]
[331214020,1720135857314,-527.777609,0.00027195,2]
[331214021,1720135857324,-1104.60661146,0.00027999,2]
[331214022,1720135857333,-150.0,0.00028458,2]
[331214023,1720135857344,-500.0,0.00029,30]
[331214024,1720135857353,-151.0,0.000295,30]
[331214025,1720135857365,-150.0,0.00029552,7]
[331214026,1720135857375,-150.0,0.00029552,7]
[331214027,1720135857383,-200.0,0.00029552,7]
[331214028,1720135857392,-432.89605453,0.00029588,2]
[331214029,1720135857401,-154.83742071,0.00029588,2]
[331214030,1720135857411,-181.84215111,0.00029588,2]
[331214031,1720135857420,-163.75264255,0.00029588,2]
[331214032,1720135857429,-193.39153138,0.00029588,2]
[331214033,1720135857438,-221.53308225,0.00029588,2]
[331214034,1720135857448,-427.95552057,0.00029588,2]
[331214035,1720135857457,-362.8409251,0.00029588,2]
[331214036,1720135857466,-8009.46983175,0.00029588,2]
[331214037,1720135857475,-154.83742071,0.00029588,2]
[331214038,1720135857487,-1464.88195694,0.00029588,2]
[331214039,1720135857497,-16350.7896334,0.00029596,30]
[331214040,1720135857691,-591.25,0.00019726,2]
[331214041,1720135857701,-591.27,0.0002,2]
[331214042,1720135857710,-3649.2103666,0.00029596,30]
[331214043,1720135857720,-251.304674,0.00029596,7]
[331214044,1720135857729,-151.0,0.00029596,7]
[331214045,1720135857738,-251.304674,0.00029596,7]
[331214046,1720135857747,-151.0,0.00029596,7]
[331214047,1720135857756,-151.0,0.00029596,7]
[331214048,1720135857767,-151.0,0.00029596,7]
[331214049,1720135857776,-151.0,0.00029596,7]
[331214050,1720135857785,-151.0,0.00029596,7]
[331214051,1720135857795,-339.43079,0.00029596,7]
[331214052,1720135857805,-151.0,0.00029596,7]
[331214053,1720135857814,-339.43079,0.00029596,7]
[331214054,1720135857823,-300.0,0.00029596,7]
[331214055,1720135857833,-1916.29526789,0.00029803,2]
[331214056,1720135857843,-879.22437591,0.00029813,2]
[331214057,1720135857852,-1463.29635585,0.00029861,2]
[331214058,1720135857863,-948.84245203,0.00029879,2]
[331214059,1720135857873,-1634.59229075,0.00029879,2]
[331214060,1720135857883,-154.82195475,0.00029901,2]
[331214061,1720135857893,-1597.25650539,0.00029901,7]
[331214062,1720135857902,-1500.0,0.00029903,2]
[331214063,1720135857911,-2118.3618334,0.00029904,2]
[331214064,1720135857921,-1039.06688618,0.00029999,2]
[331214065,1720135857930,-547.91,0.0003,60]
[331214066,1720135857939,-500.0,0.0003,30]
[331214067,1720135857949,-1728.1702109,0.0003295,4]
[331214068,1720135857958,-366.46982182,0.00033294,2]
[331214069,1720135857967,-222.222391,0.00033295,2]
[331214070,1720135857980,-527.777609,0.00033295,2]
[331214071,1720135857989,-219.917885,0.00033598,2]
[331214072,1720135857999,-1061.12071107,0.00033842,4]
[331214073,1720135858008,-1091.34939429,0.00033852,21]
[331214074,1720135858018,-1091.34939429,0.00033852,21]
[331214075,1720135858028,-659.62373504,0.00034317,2]
[331214076,1720135858038,-659.62373504,0.00034317,2]
[331214077,1720135858047,-1260.0,0.00034418,4]
[331214078,1720135858061,-154.82195475,0.00034421,4]
[331214079,1720135858071,-642.76034266,0.00034422,4]
[331214080,1720135858081,-154.82195475,0.00034462,4]
[331214081,1720135858090,-154.82195475,0.00034472,4]
[331214082,1720135858100,-514.97670057,0.00034472,4]
[331214083,1720135858110,-154.82195475,0.00034491,4]
[331214084,1720135858120,-154.82195475,0.00034517,2]
[331214085,1720135858129,-154.82195475,0.00034555,4]
[331214086,1720135858139,-336.1850365,0.0003456,4]
[331214087,1720135858148,-336.1850365,0.0003456,4]
[331214088,1720135858158,-215.09979109,0.00034562,4]
[331214089,1720135858167,-471.22669351,0.00034563,4]
[331214090,1720135858176,-190.7238018,0.00034567,4]
[331214091,1720135858186,-351.27235617,0.00034567,30]
[331214092,1720135858195,-154.6289612,0.00034588,2]
[331214093,1720135858205,-154.82195475,0.00034588,2]
[331214094,1720135858214,-221.49191877,0.00034602,4]
[331214095,1720135858223,-154.82195475,0.0003463,4]
[331214096,1720135858232,-154.82195475,0.0003463,4]
[331214097,1720135858242,-154.82195475,0.00034642,2]
[331214098,1720135858251,-154.82195475,0.00034642,2]
[331214099,1720135858260,-1876.14852158,0.00035,4]
[331214100,1720135858270,-151.0,0.00035616,7]
[331214101,1720135858278,-151.0,0.00035616,7]
[331214102,1720135858287,-151.0,0.00035616,7]
[331214103,1720135858296,-151.0,0.00035616,7]
[331214104,1720135858306,-151.0,0.00035616,7]
[331214105,1720135858316,-22161.56,0.00035616,3]
[331214106,1720135858325,-284.22260059,0.00035896,3]
[331214107,1720135858334,-154.83742071,0.00037,4]
[331214108,1720135858343,-176.55656884,0.000392,10]
[331214109,1720135858352,-222.222391,0.00039394,2]
[331214110,1720135858363,-527.777609,0.00039394,2]
[331214111,1720135858372,-3989.95425843,0.0003999,4]
[331214112,1720135858384,-151.0,0.00040274,120]
[331214113,1720135858393,-151.0,0.00040274,120]
[331214114,1720135858402,-151.0,0.00040274,120]
[331214115,1720135858411,-159.328673,0.00040274,120]
[331214116,1720135858420,-219.917885,0.00040808,2]
[331214117,1720135858429,-1161.44088877,0.00041,30]
[331214118,1720135858438,-1911.91864527,0.000425,30]
[331214119,1720135858447,-156.0,0.00044,90]
[331214120,1720135858457,-1000.0,0.00045,60]
[331214121,1720135858466,-222.222391,0.00045494,2]
[331214122,1720135858475,-527.777609,0.00045494,2]
[331214123,1720135858484,-156.0,0.00046027,90]
[331214124,1720135858494,-154.73007524,0.00046991,69]
[331214125,1720135858503,-219.917885,0.00048017,2]
[331214126,1720135858512,-156.0,0.00048329,90]
[331214127,1720135858521,-600.0,0.00049315,120]
[331214128,1720135858530,-600.0,0.00049315,120]
[331214129,1720135858539,-600.0,0.00049315,120]
[331214130,1720135858548,-600.0,0.00049315,120]
[331214131,1720135858558,-600.0,0.00049315,120]
[331214132,1720135858567,-600.0,0.00049315,120]
[331214133,1720135858576,-600.0,0.00049315,120]
[331214134,1720135858586,-600.0,0.00049315,120]
[331214135,1720135858595,-600.0,0.00049315,120]
[331214136,1720135858604,-600.0,0.00049315,120]
[331214137,1720135858615,-0.13816371,0.00049315,120]
[331214138,1720135859020,-500.0,0.00013698,2]
[331214139,1720135859030,-500.0,0.00013698,2]
[331214140,1720135859039,-501.64471739,0.00013698,2]
[331214141,1720135859049,-500.0,0.00013972,2]
[331214142,1720135859059,-479.19461853,0.00013972,2]
[331214143,1720135859122,-20.80538147,0.00013972,2]
[331214144,1720135859132,-500.0,0.00014246,2]
[331214145,1720135859141,-500.0,0.00014246,2]
[331214146,1720135859151,-500.0,0.0001452,2]
[331214147,1720135859160,-497.67853772,0.00014794,2]
[331214148,1720135860011,-500.0,0.00013698,2]
[331214149,1720135860020,-314.17424531,0.00013698,2]
[331214150,1720135860035,-185.82575469,0.00013698,2]
[331214151,1720135860044,-272.20625098,0.00013698,2]
[331214152,1720135860054,-500.0,0.00013972,2]
[331214153,1720135860063,-500.0,0.00014246,2]
[331214154,1720135860072,-202.08289237,0.0001452,2]
[331214155,1720135860081,-2.32146228,0.00014794,2]
[331214156,1720135860091,-500.0,0.00015068,2]
[331214157,1720135860100,-500.0,0.00015342,2]
[331214158,1720135860111,-500.0,0.00015616,2]
[331214159,1720135860120,-500.0,0.0001589,2]
[331214160,1720135860130,-500.0,0.00016164,2]
[331214161,1720135860139,-500.0,0.00016438,2]
[331214162,1720135860149,-500.0,0.00016712,2]
[331214163,1720135860159,-530.55105603,0.00016806,2]
[331214164,1720135860169,-500.0,0.00016986,2]
[331214165,1720135860178,-446.17,0.0001726,2]
[331214166,1720135860188,-153.0,0.00018193,2]
[331214167,1720135860197,-153.0,0.00018193,2]
[331214168,1720135860207,-1104.60661146,0.00027399,2]
[331214169,1720135860216,-300.0,0.00029596,7]
[331214170,1720135860226,-1916.29526789,0.00029793,2]
[331214171,1720135860236,-366.46982182,0.00033292,2]
[331214172,1720135860245,-1260.0,0.00034336,4]
[331214173,1720135860255,-642.76034266,0.00034421,4]
[331214174,1720135860264,-154.82195475,0.00034491,2]
[331214175,1720135860274,-154.82195475,0.0003455,4]
[331214176,1720135860282,-221.49191877,0.00034602,4]
[331214177,1720135860292,-154.82195475,0.00034634,2]
[331214178,1720135860302,-10833.93980619,0.00035616,3]
[331214180,1720135990358,2076.12977548,0.00029552,30]
[331214181,1720136039258,545.28083298,0.00029552,120]
[331214186,1720136209096,843.68532996,9.999e-05,2]
[331214188,1720136230513,-300.0,0.00012763,2]
[331214189,1720136230538,-300.0,0.00012763,2]
[331214190,1720136230564,-24900.0,0.00012764,2]
[331214191,1720136230591,-2693.64956614,0.00013598,2]
[331214192,1720136230617,-500.0,0.00013598,2]
[331214193,1720136230647,-500.0,0.00013698,2]
[331214194,1720136230674,-500.0,0.00013698,2]
[331214195,1720136230703,-500.0,0.00013698,2]
[331214196,1720136230728,-500.0,0.00013698,2]
[331214197,1720136230753,-500.0,0.00013698,2]
[331214198,1720136230778,-500.0,0.00013698,2]
[331214199,1720136230803,-500.0,0.00013698,2]
[331214200,1720136230827,-500.0,0.00013698,2]
[331214201,1720136230852,-500.0,0.00013698,2]
[331214202,1720136230877,-500.0,0.00013698,2]
[331214203,1720136230903,-500.0,0.00013698,2]
[331214204,1720136230929,-254.94,0.00013698,2]
[331214205,1720136230959,-500.0,0.00013698,2]
[331214206,1720136230984,-500.0,0.00013698,2]
[331214207,1720136231014,-500.0,0.00013698,2]
[331214208,1720136231041,-347.45257925,0.00013698,2]
[331214209,1720136231066,-503.93441485,0.00013698,2]
[331214210,1720136231091,-500.0,0.00013698,2]
[331214211,1720136231120,-500.0,0.00013698,2]
[331214212,1720136231145,-500.0,0.00013698,2]
[331214213,1720136231168,-500.0,0.00013698,2]
[331214214,1720136231196,-500.0,0.00013698,2]
[331214215,1720136231225,-502.9229916,0.00013698,2]
[331214216,1720136231252,-500.0,0.00013698,2]
[331214217,1720136231277,-525.58707619,0.00013698,2]
[331214218,1720136231302,-500.0,0.00013698,2]
[331214219,1720136231326,-500.0,0.00013698,2]
[331214220,1720136231350,-500.0,0.00013698,2]
[331214221,1720136231373,-500.0,0.00013698,2]
[331214222,1720136231396,-410.64477722,0.00013698,2]
[331214223,1720136231420,-500.0,0.00013698,2]
[331214224,1720136231443,-500.0,0.00013698,2]
[331214225,1720136231469,-500.0,0.00013698,2]
[331214226,1720136231492,-500.0,0.00013698,2]
[331214227,1720136231516,-500.0,0.00013698,2]
[331214228,1720136231540,-500.0,0.00013698,2]
[331214229,1720136231563,-500.0,0.00013698,2]
[331214230,1720136231586,-500.0,0.00013698,2]
[331214231,1720136231610,-500.0,0.00013698,2]
[331214232,1720136231633,-500.0,0.00013698,2]
[331214233,1720136231656,-500.0,0.00013698,2]
[331214234,1720136231680,-505.79478751,0.00013698,2]
[331214235,1720136231707,-500.0,0.00013698,2]
[331214236,1720136231732,-500.0,0.00013698,2]
[331214237,1720136231755,-500.0,0.00013698,2]
[331214238,1720136231779,-500.0,0.00013698,2]
[331214239,1720136231803,-500.0,0.00013698,2]
[331214240,1720136231826,-500.0,0.00013698,2]
[331214241,1720136231848,-500.0,0.00013698,2]
[331214242,1720136231873,-500.0,0.00013698,2]
[331214243,1720136231896,-500.0,0.00013698,2]
[331214244,1720136231921,-500.0,0.00013698,2]
[331214245,1720136231944,-500.0,0.00013698,2]
[331214246,1720136231971,-500.0,0.00013698,2]
[331214247,1720136231994,-500.0,0.00013698,2]
[331214248,1720136232169,-501.99186785,0.00013698,2]
[331214249,1720136232194,-500.0,0.00013698,2]
[331214250,1720136232217,-500.0,0.00013698,2]
[331214251,1720136232240,-500.0,0.00013698,2]
[331214252,1720136232263,-336.32526303,0.00013698,2]
[331214253,1720136232290,-500.0,0.00013698,2]
[331214254,1720136232313,-391.13721182,0.00013698,2]
[331214255,1720136232336,-500.0,0.00013698,2]
[331214256,1720136232360,-500.0,0.00013698,2]
[331214257,1720136232384,-500.0,0.00013698,2]
[331214258,1720136232406,-500.0,0.00013698,2]
[331214259,1720136232428,-500.0,0.00013698,2]
[331214260,1720136232450,-507.62794616,0.00013698,2]
[331214261,1720136232472,-500.0,0.00013698,2]
[331214262,1720136232495,-554.00577922,0.00013698,2]
[331214263,1720136232519,-500.0,0.00013698,2]
[331214264,1720136232541,-500.0,0.00013698,2]
[331214265,1720136232564,-500.0,0.00013698,2]